fUSD/lending_fUSD_20260324
["ID","MTS","AMOUNT","RATE_DAILY","PERIOD"]
[408858149,1774341885919,-195.14997462,0.00045479,120]
[408858150,1774341885956,-500.0,0.00045479,120]
[408858151,1774341885992,-390.91973615,0.00045479,120]
[408858152,1774341886028,-1166.7,0.00045479,120]
[408858153,1774341886064,-155.93516882,0.00045479,120]
[408858154,1774341886101,-500.0,0.00045479,120]
[408858155,1774341886138,-503.52,0.00045479,120]
[408858156,1774341886175,-500.0,0.00045479,120]
[408858157,1774341886212,-500.0,0.00045479,120]
[408858158,1774341886252,-571.9,0.00045479,120]
[408858159,1774341886292,-178.02767482,0.00045479,120]
[408858160,1774341886353,-500.0,0.00045479,120]
[408858161,1774341886394,-500.0,0.00045479,120]
[408858162,1774341886443,-500.0,0.00045479,120]
[408858163,1774341886494,-500.0,0.00045479,120]
[408858164,1774341886533,-4633.59,0.00045479,120]
[408858165,1774341886570,-500.0,0.00045479,120]
[408858166,1774341886609,-500.0,0.00045479,120]
[408858167,1774341886646,-500.0,0.00045479,120]
[408858168,1774341886684,-500.0,0.00045479,120]
[408858169,1774341886720,-1436.52,0.00045479,120]
[408858170,1774341886759,-500.0,0.00045479,120]
[408858171,1774341886801,-701.76,0.00045494,120]
[408858172,1774341886853,-21460.74,0.000455,120]
[408858173,1774341886902,-11988.31,0.000455,120]
[408858174,1774341887252,-171.5,0.000455,30]
[408858175,1774341887291,-178.68,0.000455,30]
[408858176,1774341887329,-3968.65,0.0004558,120]
[408858177,1774341887366,-445.71,0.0004558,120]
[408858178,1774341887405,-154.63,0.00045662,30]
[408858179,1774341887444,-911.817249,0.00045752,60]
[408858180,1774341887482,-156.5216645,0.00045753,120]
[408858181,1774341887521,-500.0,0.00045753,120]
[408858182,1774341887559,-766.31,0.00045753,120]
[408858183,1774341887602,-600.58,0.00045753,120]
[408858184,1774341887642,-500.0,0.00045753,120]
[408858185,1774341887680,-500.0,0.00045753,120]
[408858186,1774341887720,-584.39612988,0.00045753,120]
[408858187,1774341887758,-561.45,0.00045753,120]
[408858188,1774341887798,-500.0,0.00045753,120]
[408858189,1774341887838,-1032.07,0.00045753,120]
[408858190,1774341887878,-500.0,0.00045753,120]
[408858191,1774341887918,-275.16036246,0.00045753,120]
[408858192,1774341887960,-500.0,0.00045753,120]
[408858193,1774341888003,-806.09,0.00045753,120]
[408858194,1774341888048,-968.7,0.00045753,120]
[408858195,1774341888102,-500.0,0.00045753,120]
[408858196,1774341888150,-500.0,0.00045753,120]
[408858197,1774341888210,-777.88,0.00045753,120]
[408858198,1774341888260,-500.0,0.00045753,120]
[408858199,1774341888306,-414.67406584,0.00045753,120]
[408858200,1774341888359,-784.79,0.00045753,120]
[408858201,1774341888401,-500.0,0.00045753,120]
[408858202,1774341888444,-500.0,0.00045753,120]
[408858203,1774341888486,-500.0,0.00045753,120]
[408858204,1774341888530,-500.0,0.00045753,120]
[408858205,1774341888570,-500.0,0.00045753,120]
[408858206,1774341888613,-1373.12,0.00045753,120]
[408858207,1774341888655,-500.0,0.00045753,120]
[408858208,1774341888694,-368.73871106,0.00045753,120]
[408858209,1774341888732,-500.0,0.00045753,120]
[408858210,1774341888774,-500.0,0.00045753,120]
[408858211,1774341888813,-500.0,0.00045753,120]
[408858212,1774341888853,-500.0,0.00045753,120]
[408858213,1774341888890,-2682.47,0.00045753,120]
[408858214,1774341888929,-1490.64,0.00045753,120]
[408858215,1774341888967,-585.16,0.00045753,120]
[408858216,1774341889007,-500.0,0.00045753,120]
[408858217,1774341889044,-638.02,0.00045753,120]
[408858218,1774341889081,-500.0,0.00045753,120]
[408858219,1774341889118,-500.0,0.00045753,120]
[408858220,1774341889156,-500.0,0.00045753,120]
[408858221,1774341889197,-199.23388672,0.00045753,120]
[408858222,1774341889241,-289.47929668,0.00045753,120]
[408858223,1774341889286,-500.0,0.00045753,120]
[408858224,1774341889327,-607.91073974,0.00045753,120]
[408858225,1774341889376,-532.6,0.00045753,120]
[408858226,1774341889415,-500.0,0.00045753,60]
[408858227,1774341889452,-500.0,0.00045753,120]
[408858228,1774341889490,-500.0,0.00045753,120]
[408858229,1774341889528,-500.0,0.00045753,120]
[408858230,1774341889576,-842.73,0.00045753,120]
[408858231,1774341889621,-596.08,0.00045753,120]
[408858232,1774341889667,-500.0,0.00045753,120]
[408858233,1774341889708,-500.0,0.00045753,120]
[408858234,1774341889748,-500.0,0.00045753,120]
[408858235,1774341889790,-500.0,0.00045753,120]
[408858236,1774341889830,-500.0,0.00045753,120]
[408858237,1774341889868,-500.0,0.00045753,120]
[408858238,1774341889907,-500.0,0.00045753,120]
[408858239,1774341889948,-500.0,0.00045753,30]
[408858240,1774341890082,-500.0,0.00045753,120]
[408858241,1774341890123,-500.0,0.00045753,120]
[408858242,1774341890162,-796.12,0.00045753,120]
[408858243,1774341890202,-500.0,0.00045753,120]
[408858244,1774341890241,-500.0,0.00045753,120]
[408858245,1774341890287,-438.36268894,0.00045753,120]
[408858246,1774341890325,-500.0,0.00045753,120]
[408858247,1774341890362,-518.09,0.00045753,120]
[408858248,1774341890400,-500.0,0.00045753,30]
[408858249,1774341890440,-616.8,0.00045753,120]
[408858250,1774341890476,-862.31,0.00045753,120]
[408858251,1774341890513,-500.0,0.00045753,120]
[408858252,1774341890552,-500.0,0.00045753,120]
[408858253,1774341890590,-500.0,0.00045753,120]
[408858254,1774341890628,-500.0,0.00045753,60]
[408858255,1774341890665,-500.0,0.00045753,120]
[408858256,1774341890701,-500.0,0.00045753,120]
[408858257,1774341890737,-517.39,0.00045753,120]
[408858258,1774341890774,-537.23,0.00045753,120]
[408858259,1774341890811,-500.0,0.00045753,120]
[408858260,1774341890851,-1950.98,0.00045753,120]
[408858261,1774341890888,-828.22,0.00045753,120]
[408858262,1774341890926,-595.8,0.00045753,120]
[408858263,1774341890966,-405.94839385,0.00045753,120]
[408858264,1774341891004,-613.54,0.00045753,120]
[408858265,1774341891042,-500.0,0.00045753,120]
[408858266,1774341891078,-246.83813192,0.00045753,120]
[408858267,1774341891114,-500.0,0.00045753,120]
[408858268,1774341891150,-500.0,0.00045753,120]
[408858269,1774341891187,-500.0,0.00045753,120]
[408858270,1774341891223,-500.0,0.00045753,30]
[408858271,1774341891262,-500.0,0.00045753,120]
[408858272,1774341891300,-500.0,0.00045753,120]
[408858273,1774341891338,-500.0,0.00045753,120]
[408858274,1774341891375,-500.0,0.00045753,120]
[408858275,1774341891412,-500.0,0.00045753,120]
[408858276,1774341891451,-2958.91,0.00045753,120]
[408858277,1774341891490,-500.0,0.00045753,120]
[408858278,1774341891529,-559.67,0.00045753,120]
[408858279,1774341891571,-500.0,0.00045753,120]
[408858280,1774341891607,-500.0,0.00045753,120]
[408858281,1774341891643,-500.0,0.00045753,120]
[408858282,1774341891677,-755.16,0.00045753,120]
[408858283,1774341891711,-500.0,0.00045753,120]
[408858284,1774341891748,-500.0,0.00045753,120]
[408858285,1774341891785,-500.0,0.00045753,120]
[408858286,1774341891820,-500.0,0.00045753,120]
[408858287,1774341891854,-500.0,0.00045753,120]
[408858288,1774341891889,-500.0,0.00045753,120]
[408858289,1774341891935,-500.0,0.00045753,120]
[408858290,1774341891972,-242.39888587,0.00045753,120]
[408858291,1774341892012,-500.0,0.00045753,60]
[408858292,1774341892050,-500.0,0.00045753,120]
[408858293,1774341892090,-500.0,0.00045753,120]
[408858294,1774341892128,-500.0,0.00045753,120]
[408858295,1774341892168,-1037.12,0.00045753,120]
[408858296,1774341892207,-1087.57,0.00045753,120]
[408858297,1774341892246,-500.0,0.00045753,120]
[408858298,1774341892289,-500.0,0.00045753,120]
[408858299,1774341892328,-500.0,0.00045753,120]
[408858300,1774341892368,-564.15,0.00045753,120]
[408858301,1774341892405,-1059.95,0.00045753,120]
[408858302,1774341892443,-500.0,0.00045753,120]
[408858303,1774341892481,-500.0,0.00045753,120]
[408858304,1774341892519,-500.0,0.00045753,120]
[408858305,1774341892557,-500.0,0.00045753,120]
[408858306,1774341892595,-500.0,0.00045753,120]
[408858307,1774341892633,-632.38645003,0.00045753,120]
[408858308,1774341892670,-500.0,0.00045753,120]
[408858309,1774341892707,-500.0,0.00045753,120]
[408858310,1774341892743,-500.0,0.00045753,120]
[408858311,1774341892782,-500.0,0.00045753,120]
[408858312,1774341892820,-500.0,0.00045753,120]
[408858313,1774341892859,-500.0,0.00045753,30]
[408858314,1774341892901,-634.46,0.00045753,120]
[408858315,1774341892941,-500.0,0.00045753,120]
[408858316,1774341892981,-649.34662118,0.00045753,30]
[408858317,1774341893023,-597.58,0.00045753,120]
[408858318,1774341893068,-500.0,0.00045753,120]
[408858319,1774341893107,-3144.42,0.00045753,120]
[408858320,1774341893143,-500.0,0.00045753,120]
[408858321,1774341893182,-500.0,0.00045753,120]
[408858322,1774341893220,-500.0,0.00045753,120]
[408858323,1774341893258,-500.0,0.00045753,120]
[408858324,1774341893296,-500.0,0.00045753,120]
[408858325,1774341893333,-500.0,0.00045753,120]
[408858326,1774341893371,-500.0,0.00045753,120]
[408858327,1774341893408,-500.0,0.00045753,120]
[408858328,1774341893449,-170.48367742,0.00045753,120]
[408858329,1774341893486,-598.15725488,0.00045753,120]
[408858330,1774341893525,-319.46970892,0.00045753,120]
[408858331,1774341893565,-500.0,0.00045753,120]
[408858332,1774341893602,-500.0,0.00045753,120]
[408858333,1774341893644,-334.05530965,0.00045753,120]
[408858334,1774341893684,-500.0,0.00045753,120]
[408858335,1774341893863,-588.29,0.00045753,120]
[408858336,1774341893904,-500.0,0.00045753,120]
[408858337,1774341893944,-500.0,0.00045753,120]
[408858338,1774341893985,-500.0,0.00045753,120]
[408858339,1774341894026,-500.0,0.00045753,120]
[408858340,1774341894065,-558.38,0.00045753,120]
[408858341,1774341894105,-384.90335306,0.00045753,120]
[408858342,1774341894146,-500.0,0.00045753,120]
[408858343,1774341894185,-500.0,0.00045753,120]
[408858344,1774341894224,-230.39183957,0.00045753,120]
[408858345,1774341894266,-500.0,0.00045753,120]
[408858346,1774341894308,-1666.3,0.00045753,120]
[408858347,1774341894348,-503.582131,0.00045753,120]
[408858348,1774341894388,-1127.89,0.00045753,120]
[408858349,1774341894427,-833.99,0.00045753,120]
[408858350,1774341894464,-500.0,0.00045753,120]
[408858351,1774341894502,-500.0,0.00045753,120]
[408858352,1774341894540,-707.4,0.00045753,120]
[408858353,1774341894578,-500.0,0.00045753,120]
[408858354,1774341894615,-500.0,0.00045753,120]
[408858355,1774341894652,-500.0,0.00045753,120]
[408858356,1774341894692,-500.0,0.00045753,120]
[408858357,1774341894729,-5146.05,0.00045753,120]
[408858358,1774341894773,-500.0,0.00045753,120]
[408858359,1774341894811,-753.6,0.00045753,120]
[408858360,1774341894849,-500.0,0.00045753,120]
[408858361,1774341894886,-2320.82,0.00045753,90]
[408858362,1774341894925,-500.0,0.00045753,120]
[408858363,1774341894967,-548.08,0.00045753,120]
[408858364,1774341895009,-500.0,0.00045753,120]
[408858365,1774341895051,-989.59,0.00045753,120]
[408858366,1774341895091,-1667.93,0.00045753,120]
[408858367,1774341895131,-287.32631874,0.00045753,120]
[408858368,1774341895173,-717.94,0.00045753,120]
[408858369,1774341895213,-500.0,0.00045753,120]
[408858370,1774341895256,-972.23,0.00045753,120]
[408858371,1774341895296,-500.0,0.00045753,120]
[408858372,1774341895336,-500.0,0.00045753,120]
[408858373,1774341895376,-500.0,0.00045753,120]
[408858374,1774341895415,-607.4243315,0.00045753,120]
[408858375,1774341895456,-412.32052032,0.00045753,120]
[408858376,1774341895497,-537.62013849,0.00045753,120]
[408858377,1774341895538,-500.0,0.00045753,120]
[408858378,1774341895577,-834.18,0.00045753,120]
[408858379,1774341895615,-283.73242228,0.00045753,120]
[408858380,1774341895652,-788.64,0.00045753,120]
[408858381,1774341895694,-1464.26,0.00045753,120]
[408858382,1774341895735,-500.0,0.00045753,120]
[408858383,1774341895773,-500.0,0.00045753,120]
[408858384,1774341895812,-500.0,0.00045753,120]
[408858385,1774341895852,-474.47401678,0.00045753,120]
[408858386,1774341895893,-500.0,0.00045753,120]
[408858387,1774341895935,-500.0,0.00045753,120]
[408858388,1774341895976,-1066.66,0.00045753,120]
[408858389,1774341896017,-667.09,0.00045753,120]
[408858390,1774341896059,-500.0,0.00045753,120]
[408858391,1774341896100,-500.0,0.00045753,120]
[408858392,1774341896142,-184.74477456,0.00045753,120]
[408858393,1774341896184,-500.0,0.00045753,120]
[408858394,1774341896225,-500.0,0.00045753,120]
[408858395,1774341896268,-276.8611492,0.00045753,120]
[408858396,1774341896313,-500.0,0.00045753,120]
[408858397,1774341896362,-500.0,0.00045753,120]
[408858398,1774341896407,-500.0,0.00045753,120]
[408858399,1774341896451,-500.0,0.00045753,120]
[408858400,1774341896494,-3026.5,0.00045753,120]
[408858401,1774341896535,-500.0,0.00045753,120]
[408858402,1774341896576,-500.0,0.00045753,120]
[408858403,1774341896615,-500.0,0.00045753,120]
[408858404,1774341896656,-413.86600439,0.00045753,120]
[408858405,1774341896697,-207.38900568,0.00045753,120]
[408858406,1774341896740,-500.0,0.00045753,30]
[408858407,1774341896776,-500.0,0.00045753,120]
[408858408,1774341896815,-560.83,0.00045753,60]
[408858409,1774341896852,-500.0,0.00045753,120]
[408858410,1774341896890,-500.0,0.00045753,120]
[408858411,1774341896929,-500.0,0.00045753,120]
[408858412,1774341896968,-500.0,0.00045753,120]
[408858413,1774341897008,-698.76,0.00045753,120]
[408858414,1774341897051,-500.0,0.00045753,120]
[408858415,1774341897097,-500.0,0.00045753,120]
[408858416,1774341897140,-500.0,0.00045753,120]
[408858417,1774341897181,-500.0,0.00045753,120]
[408858418,1774341897221,-517.25,0.00045753,120]
[408858419,1774341897518,-500.0,0.00045753,120]
[408858420,1774341897576,-500.0,0.00045753,120]
[408858421,1774341897617,-500.0,0.00045753,120]
[408858422,1774341897658,-586.16930798,0.00045753,120]
[408858423,1774341897697,-500.0,0.00045753,120]
[408858424,1774341897735,-565.50593124,0.00045753,120]
[408858425,1774341897773,-500.0,0.00045753,120]
[408858426,1774341897812,-382.66881315,0.00045753,120]
[408858427,1774341897850,-500.0,0.00045753,120]
[408858428,1774341897888,-1068.58,0.00045753,120]
[408858429,1774341897926,-1383.25,0.00045753,120]
[408858430,1774341897965,-500.0,0.00045753,120]
[408858431,1774341898003,-500.0,0.00045753,120]
[408858432,1774341898042,-500.0,0.00045753,120]
[408858433,1774341898081,-500.0,0.00045753,120]
[408858434,1774341898120,-500.0,0.00045753,120]
[408858435,1774341898163,-3690.16,0.00045753,120]
[408858436,1774341898204,-498.35432642,0.00045753,120]
[408858437,1774341898248,-500.0,0.00045753,120]
[408858438,1774341898292,-500.0,0.00045753,120]
[408858439,1774341898334,-500.0,0.00045753,120]
[408858440,1774341898374,-500.0,0.00045753,120]
[408858441,1774341898415,-500.0,0.00045753,120]
[408858442,1774341898457,-500.0,0.00045753,120]
[408858443,1774341898499,-500.0,0.00045753,120]
[408858444,1774341898541,-500.0,0.00045753,120]
[408858445,1774341898586,-500.0,0.00045753,120]
[408858446,1774341898626,-621.3,0.00045753,120]
[408858447,1774341898672,-500.0,0.00045753,120]
[408858448,1774341898715,-500.0,0.00045753,120]
[408858449,1774341898757,-2126.72,0.00045753,120]
[408858450,1774341898798,-500.0,0.00045753,120]
[408858451,1774341898835,-500.0,0.00045753,120]
[408858452,1774341898872,-357.93535374,0.00045753,120]
[408858453,1774341898909,-500.0,0.00045753,120]
[408858454,1774341898948,-500.0,0.00045753,120]
[408858455,1774341898987,-500.0,0.00045753,120]
[408858456,1774341899026,-500.0,0.00045753,120]
[408858457,1774341899066,-694.45,0.00045753,120]
[408858458,1774341899107,-500.0,0.00045753,120]
[408858459,1774341899146,-500.0,0.00045753,120]
[408858460,1774341899186,-500.0,0.00045753,120]
[408858461,1774341899224,-500.0,0.00045753,120]
[408858462,1774341899263,-500.0,0.00045753,120]
[408858463,1774341899303,-500.0,0.00045753,120]
[408858464,1774341899343,-500.0,0.00045753,120]
[408858465,1774341899382,-500.0,0.00045753,120]
[408858466,1774341899420,-500.0,0.00045753,120]
[408858467,1774341899464,-1870.96,0.00045753,60]
[408858468,1774341899504,-500.0,0.00045753,120]
[408858469,1774341899545,-500.0,0.00045753,120]
[408858470,1774341899585,-224.40943014,0.00045753,120]
[408858471,1774341899624,-500.0,0.00045753,120]
[408858472,1774341899663,-412.60650199,0.00045753,120]
[408858473,1774341899700,-500.0,0.00045753,120]
[408858474,1774341899737,-500.0,0.00045753,120]
[408858475,1774341899775,-500.0,0.00045753,120]
[408858476,1774341899812,-500.0,0.00045753,120]
[408858477,1774341899850,-1542.37,0.00045753,120]
[408858478,1774341899888,-500.0,0.00045753,120]
[408858479,1774341899923,-500.0,0.00045753,120]
[408858480,1774341899959,-500.0,0.00045753,120]
[408858481,1774341899994,-500.0,0.00045753,120]
[408858482,1774341900032,-1094.1,0.00045753,120]
[408858483,1774341900073,-500.0,0.00045753,120]
[408858484,1774341900119,-500.0,0.00045753,120]
[408858485,1774341900209,-500.0,0.00045753,120]
[408858486,1774341900254,-522.71,0.00045753,120]
[408858487,1774341900292,-500.0,0.00045753,120]
[408858488,1774341900333,-500.0,0.00045753,120]
[408858489,1774341900372,-500.0,0.00045753,120]
[408858490,1774341900414,-500.0,0.00045753,120]
[408858491,1774341900456,-500.0,0.00045753,120]
[408858492,1774341900497,-500.0,0.00045753,120]
[408858493,1774341900536,-500.0,0.00045753,120]
[408858494,1774341900576,-500.0,0.00045753,120]
[408858495,1774341900614,-596.48086839,0.00045753,120]
[408858496,1774341900650,-500.0,0.00045753,120]
[408858497,1774341900685,-500.0,0.00045753,120]
[408858498,1774341900722,-721.01,0.00045753,120]
[408858499,1774341900756,-1251.5,0.00045753,120]
[408858500,1774341900790,-500.0,0.00045753,120]
[408858501,1774341900827,-500.0,0.00045753,120]
[408858502,1774341900862,-872.26,0.00045753,120]
[408858503,1774341900896,-500.0,0.00045753,120]
[408858504,1774341900933,-500.0,0.00045753,120]
[408858505,1774341900971,-1166.7,0.00045753,120]
[408858506,1774341901009,-500.0,0.00045753,120]
[408858507,1774341901046,-503.52,0.00045753,120]
[408858508,1774341901081,-500.0,0.00045753,120]
[408858509,1774341901116,-500.0,0.00045753,120]
[408858510,1774341901151,-571.9,0.00045753,120]
[408858511,1774341901186,-500.0,0.00045753,120]
[408858512,1774341901221,-500.0,0.00045753,120]
[408858513,1774341901257,-500.0,0.00045753,120]
[408858514,1774341901294,-500.0,0.00045753,120]
[408858515,1774341901330,-4633.59,0.00045753,120]
[408858516,1774341901373,-500.0,0.00045753,120]
[408858517,1774341901409,-500.0,0.00045753,120]
[408858518,1774341901460,-500.0,0.00045753,120]
[408858519,1774341901500,-500.0,0.00045753,120]
[408858520,1774341901539,-1436.52,0.00045753,120]
[408858521,1774341901577,-500.0,0.00045753,120]
[408858522,1774341901617,-837.94944347,0.0004588,120]
[408858523,1774341901652,-188.84864006,0.000459,120]
[408858524,1774341901685,-21460.74,0.00046,120]
[408858525,1774341901721,-11988.31,0.00046,120]
[408858526,1774341901755,-6131.0,0.00046,120]
[408858527,1774341901790,-500.0,0.00046,120]
[408858528,1774341901825,-150.0,0.00046005,120]
[408858529,1774341901859,-150.0,0.00046005,120]
[408858530,1774341901893,-258.76091372,0.00046005,120]
[408858531,1774341901928,-911.817249,0.00046026,60]
[408858532,1774341901963,-156.5216645,0.00046027,120]
[408858533,1774341901998,-500.0,0.00046027,120]
[408858534,1774341902040,-766.31,0.00046027,120]
[408858535,1774341902079,-600.58,0.00046027,120]
[408858536,1774341902114,-500.0,0.00046027,120]
[408858537,1774341902150,-500.0,0.00046027,120]
[408858538,1774341902186,-561.45,0.00046027,120]
[408858539,1774341902226,-500.0,0.00046027,120]
[408858540,1774341902267,-1032.07,0.00046027,120]
[408858541,1774341902309,-500.0,0.00046027,120]
[408858542,1774341902351,-500.0,0.00046027,120]
[408858543,1774341902391,-806.09,0.00046027,120]
[408858544,1774341902431,-968.7,0.00046027,120]
[408858545,1774341902474,-500.0,0.00046027,120]
[408858546,1774341902516,-500.0,0.00046027,120]
[408858547,1774341902556,-777.88,0.00046027,120]
[408858548,1774341902596,-500.0,0.00046027,120]
[408858549,1774341902635,-784.79,0.00046027,120]
[408858550,1774341902676,-500.0,0.00046027,120]
[408858551,1774341902722,-322.01198188,0.00046027,120]
[408858552,1774341902762,-300.18697427,0.00046027,120]
[408858553,1774341902800,-500.0,0.00046027,120]
[408858554,1774341902838,-500.0,0.00046027,120]
[408858555,1774341902874,-1373.12,0.00046027,120]
[408858556,1774341902912,-500.0,0.00046027,120]
[408858557,1774341902950,-500.0,0.00046027,120]
[408858558,1774341902995,-500.0,0.00046027,120]
[408858559,1774341903039,-500.0,0.00046027,120]
[408858560,1774341903076,-417.98463078,0.00046027,120]
[408858561,1774341903115,-2682.47,0.00046027,120]
[408858562,1774341903150,-1490.64,0.00046027,120]
[408858563,1774341903187,-585.16,0.00046027,120]
[408858564,1774341903223,-500.0,0.00046027,120]
[408858565,1774341903258,-638.02,0.00046027,120]
[408858566,1774341903294,-500.0,0.00046027,120]
[408858567,1774341903332,-500.0,0.00046027,120]
[408858568,1774341903368,-500.0,0.00046027,120]
[408858569,1774341903405,-500.0,0.00046027,120]
[408858570,1774341903450,-532.6,0.00046027,120]
[408858571,1774341903492,-500.0,0.00046027,60]
[408858572,1774341903532,-500.0,0.00046027,120]
[408858573,1774341903572,-500.0,0.00046027,120]
[408858574,1774341903610,-500.0,0.00046027,120]
[408858575,1774341903649,-842.73,0.00046027,120]
[408858576,1774341903686,-596.08,0.00046027,120]
[408858577,1774341903722,-500.0,0.00046027,120]
[408858578,1774341903757,-570.95164624,0.00046027,120]
[408858579,1774341903792,-500.0,0.00046027,120]
[408858580,1774341903829,-500.0,0.00046027,120]
[408858581,1774341904126,-500.0,0.00046027,120]
[408858582,1774341904167,-500.0,0.00046027,120]
[408858583,1774341904209,-500.0,0.00046027,120]
[408858584,1774341904254,-500.0,0.00046027,30]
[408858585,1774341904299,-456.1534064,0.00046027,120]
[408858586,1774341904344,-500.0,0.00046027,120]
[408858587,1774341904385,-796.12,0.00046027,120]
[408858588,1774341904427,-500.0,0.00046027,120]
[408858589,1774341904469,-500.0,0.00046027,120]
[408858590,1774341904511,-500.0,0.00046027,120]
[408858591,1774341904551,-518.09,0.00046027,120]
[408858592,1774341904591,-500.0,0.00046027,30]
[408858593,1774341904629,-616.8,0.00046027,120]
[408858594,1774341904666,-862.31,0.00046027,120]
[408858595,1774341904714,-500.0,0.00046027,120]
[408858596,1774341904759,-500.0,0.00046027,120]
[408858597,1774341904800,-500.0,0.00046027,120]
[408858598,1774341904839,-500.0,0.00046027,60]
[408858599,1774341904880,-500.0,0.00046027,120]
[408858600,1774341904921,-500.0,0.00046027,120]
[408858601,1774341904968,-517.39,0.00046027,120]
[408858602,1774341905013,-537.23,0.00046027,120]
[408858603,1774341905057,-500.0,0.00046027,120]
[408858604,1774341905100,-1950.98,0.00046027,120]
[408858605,1774341905142,-828.22,0.00046027,120]
[408858606,1774341905185,-595.8,0.00046027,120]
[408858607,1774341905227,-613.54,0.00046027,120]
[408858608,1774341905269,-500.0,0.00046027,120]
[408858609,1774341905312,-500.0,0.00046027,120]
[408858610,1774341905356,-500.0,0.00046027,120]
[408858611,1774341905398,-500.0,0.00046027,120]
[408858612,1774341905439,-500.0,0.00046027,30]
[408858613,1774341905480,-456.33011777,0.00046027,120]
[408858614,1774341905522,-500.0,0.00046027,120]
[408858615,1774341905565,-500.0,0.00046027,120]
[408858616,1774341905606,-500.0,0.00046027,120]
[408858617,1774341905647,-500.0,0.00046027,120]
[408858618,1774341905689,-2958.91,0.00046027,120]
[408858619,1774341905728,-500.0,0.00046027,120]
[408858620,1774341905767,-559.67,0.00046027,120]
[408858621,1774341905806,-500.0,0.00046027,120]
[408858622,1774341905847,-500.0,0.00046027,120]
[408858623,1774341905886,-500.0,0.00046027,120]
[408858624,1774341905926,-755.16,0.00046027,120]
[408858625,1774341905966,-500.0,0.00046027,120]
[408858626,1774341906007,-500.0,0.00046027,120]
[408858627,1774341906048,-500.0,0.00046027,120]
[408858628,1774341906088,-307.52647551,0.00046027,120]
[408858629,1774341906128,-500.0,0.00046027,120]
[408858630,1774341906167,-500.0,0.00046027,120]
[408858631,1774341906209,-500.0,0.00046027,120]
[408858632,1774341906252,-500.0,0.00046027,60]
[408858633,1774341906293,-478.01660675,0.00046027,120]
[408858634,1774341906334,-500.0,0.00046027,120]
[408858635,1774341906377,-500.0,0.00046027,120]
[408858636,1774341906416,-1037.12,0.00046027,120]
[408858637,1774341906456,-1087.57,0.00046027,120]
[408858638,1774341906498,-500.0,0.00046027,120]
[408858639,1774341906540,-500.0,0.00046027,120]
[408858640,1774341906582,-500.0,0.00046027,120]
[408858641,1774341906625,-564.15,0.00046027,120]
[408858642,1774341906668,-1059.95,0.00046027,120]
[408858643,1774341906710,-500.0,0.00046027,120]
[408858644,1774341906754,-500.0,0.00046027,120]
[408858645,1774341906796,-500.0,0.00046027,120]
[408858646,1774341906838,-500.0,0.00046027,120]
[408858647,1774341906879,-565.34857676,0.00046027,120]
[408858648,1774341906921,-500.0,0.00046027,120]